bitfinex-derivatives/quotes_BTCF0:USTF0_20241203
["timestamp","ask_amount","ask_price","bid_price","bid_amount"]
[1733241436758,0.052345,95486.0,95484.0,0.00011145]
[1733241437261,2.3e-07,95487.0,95485.0,0.413145]
[1733241437461,2.3e-07,95487.0,95486.0,0.17768]
[1733241437669,0.001,95492.0,95491.0,0.05334177]
[1733241437864,0.001,95492.0,95491.0,0.49322177]
[1733241438064,0.001,95492.0,95491.0,0.49326177]
[1733241438367,0.0026,95508.0,95491.0,0.43992]
[1733241438666,0.052341,95494.0,95490.0,0.17768]
[1733241438872,0.36088134,95502.0,95490.0,0.17768]
[1733241438873,0.052339,95496.0,95490.0,0.17768]
[1733241439059,0.05234,95495.0,95487.0,0.17768]
[1733241439366,0.414142,95492.0,95491.0,0.007]
[1733241439763,0.50299712,95492.0,95491.0,0.007]
[1733241440475,0.69019655,95492.0,95491.0,0.007]
[1733241440769,0.69019655,95492.0,95484.0,0.00011145]
[1733241440770,0.052345,95485.0,95484.0,0.00011145]
[1733241441161,0.13332013,95485.0,95484.0,0.00011145]
[1733241441779,0.12632013,95485.0,95484.0,0.00011145]
[1733241442073,0.12532013,95485.0,95484.0,0.00011145]
[1733241442267,0.052347,95483.0,95462.0,0.43992]
[1733241442577,0.052354,95470.0,95462.0,0.61736]
[1733241442781,0.052354,95470.0,95462.0,0.669718]
[1733241442782,0.14020912,95470.0,95462.0,0.669718]
[1733241442965,0.3608,95468.0,95462.0,0.61736]
[1733241443166,0.3608,95468.0,95467.0,0.0001002]
[1733241443367,0.44965512,95468.0,95467.0,0.0001002]
[1733241443975,0.3608,95468.0,95456.0,0.2746163]
[1733241444175,0.3608,95460.0,95444.0,0.17744]
[1733241444374,0.3608,95460.0,95443.0,0.44052]
[1733241444375,0.3608,95445.0,95443.0,0.44052]
[1733241444575,0.052363,95453.0,95443.0,0.44052]
[1733241444576,0.3608,95444.0,95443.0,0.492328]
[1733241444768,0.36092001,95444.0,95443.0,0.492328]
[1733241444969,0.36092001,95444.0,95443.0,0.49243186]
[1733241445171,0.36092001,95444.0,95443.0,0.00010386]
[1733241445472,0.36103107,95444.0,95443.0,0.00010386]
[1733241445882,0.36203107,95444.0,95443.0,0.00010386]
[1733241446379,0.72283107,95444.0,95426.0,0.17748]
[1733241446573,0.36203107,95444.0,95427.0,0.02094795]
[1733241446874,0.39189063,95444.0,95443.0,0.052368]
[1733241448178,0.03109063,95444.0,95443.0,0.052368]
[1733241448483,0.03209063,95444.0,95443.0,0.052368]
[1733241449180,0.0026,95457.0,95442.0,0.17748]
[1733241449374,0.0026,95463.0,95450.0,0.3608]
[1733241449571,0.052356,95466.0,95461.0,0.052358]
[1733241449773,0.39142077,95471.0,95461.0,0.052358]
[1733241449973,0.052357,95465.0,95461.0,0.052358]
[1733241450275,0.3608,95463.0,95458.0,0.17752]
[1733241450476,0.05236,95460.0,95459.0,0.05236]
[1733241451182,0.3608,95463.0,95461.0,0.052358]
[1733241451681,0.3628,95463.0,95461.0,0.052358]
[1733241452267,0.3618,95463.0,95461.0,0.052358]
[1733241452683,0.3618,95463.0,95453.0,0.17752]
[1733241452875,0.3618,95463.0,95457.0,0.052361]
[1733241452876,0.052359,95460.0,95457.0,0.052361]
[1733241453273,0.001,95460.0,95459.0,0.05236]
[1733241453677,0.001,95460.0,95459.0,0.22988]
[1733241454182,4e-07,95464.0,95463.0,0.052357]
[1733241454679,4e-07,95464.0,95463.0,0.052397]
[1733241454881,0.0105,95477.0,95476.0,0.05235]
[1733241455074,0.3608,95504.0,95492.0,0.052342]
[1733241455075,0.0105,95493.0,95492.0,0.052342]
[1733241455272,0.3608,95504.0,95492.0,0.17752]
[1733241455581,0.39036996,95504.0,95503.0,0.052376]
[1733241455981,0.39048393,95504.0,95503.0,0.052376]
[1733241456383,0.39948393,95504.0,95503.0,0.052376]
[1733241456772,0.40648393,95504.0,95503.0,0.052376]
[1733241458386,0.04568393,95504.0,95503.0,0.052376]
[1733241458775,0.0105,95520.0,95503.0,0.05248337]
[1733241458980,0.3608,95526.0,95519.0,0.052327]
[1733241459178,0.052319,95533.0,95532.0,0.052319]
[1733241459580,0.0791,95539.0,95532.0,0.052319]
[1733241459581,0.131416,95539.0,95535.0,0.052318]
[1733241459779,0.39181932,95536.0,95535.0,0.052318]
[1733241459979,0.39181932,95536.0,95535.0,0.229878]
[1733241460873,0.03101932,95536.0,95535.0,0.229878]
[1733241462182,0.04001932,95536.0,95535.0,0.053358]
[1733241462381,0.04801932,95536.0,95535.0,0.231838]
[1733241462574,0.03901932,95536.0,95535.0,0.230838]
[1733241462882,0.04201932,95536.0,95535.0,0.230838]
[1733241463083,0.03401932,95536.0,95535.0,0.229838]
[1733241463980,0.03401932,95536.0,95535.0,0.229798]
[1733241464885,0.0105,95551.0,95550.0,0.05231]
[1733241465087,0.3608,95553.0,95552.0,0.052309]
[1733241465688,0.39037344,95553.0,95552.0,0.052349]
[1733241465991,0.39049588,95553.0,95552.0,0.052349]
[1733241466191,0.39949588,95553.0,95552.0,0.053349]
[1733241466688,0.03869588,95553.0,95552.0,0.00104]
[1733241466880,0.40449588,95553.0,95552.0,0.00104]
[1733241467485,0.39949588,95553.0,95552.0,0.00104]
[1733241467685,0.39949588,95553.0,95535.0,4e-05]
[1733241467686,0.40349588,95553.0,95536.0,0.17744]
[1733241467883,0.39449588,95553.0,95551.0,0.052309]
[1733241468079,0.40349588,95553.0,95552.0,0.001]
[1733241468483,0.39449588,95553.0,95552.0,0.052309]
[1733241468684,0.40149588,95553.0,95552.0,0.053309]
[1733241469185,0.39749588,95553.0,95552.0,0.053309]
[1733241469493,0.04069588,95553.0,95552.0,0.053309]
[1733241469679,0.03369588,95553.0,95552.0,0.052309]
[1733241469879,0.04069588,95553.0,95552.0,0.053309]
[1733241470193,0.03669588,95553.0,95552.0,0.053309]
[1733241470381,0.04169588,95553.0,95552.0,0.053309]
[1733241471090,0.40249588,95553.0,95552.0,0.053309]
[1733241471276,0.40249588,95553.0,95552.0,0.052309]
[1733241471481,0.40449588,95553.0,95552.0,0.053309]
[1733241472082,0.40349588,95553.0,95552.0,0.053309]
[1733241473487,0.04269588,95553.0,95552.0,0.053309]
[1733241474987,0.03369588,95553.0,95552.0,0.052309]
[1733241475189,0.04269588,95553.0,95552.0,0.053309]
[1733241475586,0.03369588,95553.0,95552.0,0.052309]
[1733241475784,0.03369588,95553.0,95552.0,0.053309]
[1733241475785,0.04269588,95553.0,95552.0,0.053309]
[1733241476478,0.03869588,95553.0,95552.0,0.053309]
[1733241476686,0.04269588,95553.0,95552.0,0.053309]
[1733241477289,0.00742682,95553.0,95552.0,0.053309]
[1733241477481,8.2e-07,95553.0,95552.0,0.053309]
[1733241478085,0.0105,95569.0,95568.0,0.0523]
[1733241478294,0.3608,95574.0,95573.0,0.052297]
[1733241479488,0.3698,95574.0,95573.0,0.053297]
[1733241479693,0.3788,95574.0,95573.0,0.054297]
[1733241479988,0.40840431,95574.0,95573.0,0.054297]
[1733241480391,0.46070131,95574.0,95573.0,0.054297]
[1733241480587,0.09990131,95574.0,95573.0,0.054297]
[1733241480901,0.04760431,95574.0,95573.0,0.054297]
[1733241481082,0.04760431,95574.0,95573.0,0.231497]
[1733241481888,0.09990131,95574.0,95573.0,0.231497]
[1733241482500,0.09990131,95574.0,95573.0,0.002]
[1733241482688,0.052299,95569.0,95568.0,0.00013587]
[1733241482993,0.052339,95569.0,95568.0,0.05243587]
[1733241483587,4e-05,95569.0,95568.0,0.05243587]
[1733241484894,0.00804,95569.0,95568.0,0.05343587]
[1733241485097,0.060339,95569.0,95568.0,0.00113587]
[1733241485293,0.060339,95569.0,95568.0,0.05443587]
[1733241485294,0.01704,95569.0,95568.0,0.05443587]
[1733241485494,0.069339,95569.0,95568.0,0.05443587]
[1733241486002,0.069339,95569.0,95568.0,0.00213587]
[1733241488502,0.069339,95569.0,95568.0,0.05443587]
[1733241489001,0.01704,95569.0,95555.0,0.1772]
[1733241489206,0.3608,95560.0,95555.0,0.1772]
[1733241489399,8e-05,95556.0,95555.0,0.229507]
[1733241491397,8e-05,95556.0,95555.0,0.052307]
[1733241491598,8e-05,95556.0,95555.0,0.053307]
[1733241491794,0.0306317,95556.0,95555.0,0.053307]
[1733241492009,8e-05,95556.0,95555.0,0.053307]
[1733241492396,0.052387,95556.0,95555.0,0.053307]
[1733241492597,8e-05,95556.0,95555.0,0.052307]
[1733241492818,0.01308,95556.0,95555.0,0.053307]
[1733241492997,0.01308,95556.0,95547.0,0.18785249]
[1733241493200,0.052315,95540.0,95539.0,0.00056]
[1733241493418,0.052315,95540.0,95519.0,0.0105]
[1733241493419,0.052331,95511.0,95510.0,0.0026]
[1733241493609,0.052331,95511.0,95496.0,0.3608]
[1733241493610,0.3608,95515.0,95498.0,0.24995912]
[1733241493903,0.3608,95503.0,95502.0,0.052336]
[1733241494109,0.36090331,95503.0,95502.0,0.0733434]
[1733241494994,0.12416628,95503.0,95502.0,0.0733434]
[1733241495198,0.03091157,95503.0,95502.0,0.0733434]
[1733241495509,0.3608,95515.0,95514.0,0.05233]
[1733241495706,0.3608,95531.0,95514.0,0.3608]
[1733241495707,0.12377332,95524.0,95514.0,0.3608]
[1733241495913,0.36264,95531.0,95519.0,0.052327]
[1733241496106,0.15507872,95542.0,95540.0,0.052315]
[1733241496406,0.15507872,95542.0,95530.0,0.7216]
[1733241496407,0.00011882,95546.0,95545.0,0.052313]
[1733241496612,0.00132,95575.0,95557.0,0.052306]
[1733241496905,0.26242725,95579.0,95578.0,0.052294]
[1733241497109,0.15773604,95583.0,95574.0,0.3608]
[1733241497110,0.052293,95581.0,95580.0,0.052293]
[1733241497298,0.052293,95581.0,95574.0,0.53804]
[1733241497299,0.052294,95580.0,95578.0,4e-05]
[1733241497495,9.944e-05,95579.0,95578.0,0.052294]
[1733241498699,0.052294,95578.0,95576.0,0.0524087]
[1733241499003,0.00012,95577.0,95576.0,0.0001137]
[1733241499204,0.00012,95577.0,95576.0,0.0524097]
[1733241500304,0.00912,95577.0,95576.0,0.0524097]
[1733241501611,0.01812,95577.0,95576.0,0.0534097]
[1733241502103,0.04782992,95577.0,95576.0,0.0534097]
[1733241503106,9.944e-05,95579.0,95576.0,0.0534097]
[1733241503306,0.1,95600.0,95576.0,0.0011137]
[1733241503508,0.1,95600.0,95599.0,0.413083]
[1733241504410,0.10011949,95600.0,95599.0,0.413083]
[1733241505111,0.13078917,95600.0,95599.0,0.413083]
[1733241506014,0.13978917,95600.0,95599.0,0.414083]
[1733241506599,0.14878917,95600.0,95599.0,0.415083]
[1733241508808,0.14878917,95600.0,95582.0,0.1515]
[1733241508809,0.052287,95592.0,95575.0,0.3608]
[1733241509112,4e-05,95579.0,95566.0,0.02092074]
[1733241509300,4e-05,95579.0,95563.0,0.3608]
[1733241509499,0.15782438,95579.0,95563.0,0.3608]
[1733241509802,0.15782438,95579.0,95561.0,0.0768]
[1733241509999,0.26242743,95579.0,95556.0,0.36236969]
[1733241510207,0.26242743,95579.0,95549.0,0.0026]
[1733241510208,0.052305,95559.0,95549.0,0.0026]
[1733241510408,0.052305,95559.0,95530.0,4e-05]
[1733241510409,0.05231,95549.0,95530.0,4e-05]
[1733241510716,4e-05,95531.0,95530.0,0.22884]
[1733241511007,4e-05,95531.0,95530.0,0.24976074]
[1733241511206,0.18568614,95567.0,95540.0,0.18919111]
[1733241511402,0.3608,95574.0,95553.0,0.3608]
[1733241511403,0.18568614,95569.0,95553.0,0.3608]
[1733241511605,0.18568614,95564.0,95553.0,0.3608]
[1733241511908,0.05087933,95563.0,95553.0,0.3608]
[1733241512114,0.23656547,95563.0,95553.0,0.3608]
[1733241512406,0.05088014,95562.0,95554.0,0.4485]
[1733241512809,0.09267578,95555.0,95554.0,0.4485]
[1733241513003,0.09267578,95558.0,95554.0,0.4485]
[1733241513204,0.09267912,95555.0,95554.0,0.4485]
[1733241513406,0.37452825,95570.0,95557.0,4e-05]
[1733241513603,0.052298,95572.0,95557.0,4e-05]
[1733241513604,0.05087315,95569.0,95557.0,4e-05]
[1733241513816,0.23763514,95572.0,95569.0,4e-05]
[1733241513999,0.05087187,95571.0,95569.0,4e-05]
[1733241514205,0.05087187,95571.0,95554.0,0.4485]
[1733241514709,4e-05,95555.0,95554.0,0.4485]
[1733241515015,4e-05,95555.0,95554.0,0.500808]
[1733241515209,0.001,95569.0,95554.0,0.4485]
[1733241515410,0.001,95569.0,95568.0,0.3608]
[1733241515609,0.02092074,95590.0,95571.0,0.052298]
[1733241515809,0.02092074,95590.0,95576.0,0.3608]
[1733241515999,0.02092074,95590.0,95589.0,4.001e-05]
[1733241516704,0.18534475,95590.0,95589.0,4.001e-05]
[1733241516904,0.052287,95591.0,95589.0,4.001e-05]
[1733241517214,0.39121665,95594.0,95590.0,4.001e-05]
[1733241517712,0.39121665,95594.0,95589.0,0.001]
[1733241517713,0.39121665,95594.0,95593.0,4.001e-05]
[1733241519510,0.44350265,95594.0,95593.0,4.001e-05]
[1733241519812,0.45250265,95594.0,95593.0,0.00104001]
[1733241520016,0.09170265,95594.0,95593.0,0.00104001]
[1733241520311,0.04841665,95594.0,95593.0,0.00204001]
[1733241520511,0.04841665,95594.0,95593.0,0.36284001]
[1733241521710,0.04841665,95594.0,95593.0,0.36284001]
[1733241522311,0.10011949,95600.0,95593.0,0.36284001]
[1733241522312,0.10011949,95600.0,95599.0,0.052278]
[1733241522511,0.00128,95628.0,95599.0,0.052278]
[1733241522512,0.18534475,95614.0,95613.0,0.05227]
[1733241522713,0.18536031,95615.0,95614.0,0.05227]
[1733241522909,0.26849879,95631.0,95613.0,0.3608]
[1733241522910,0.15616147,95622.0,95621.0,0.052266]
[1733241523106,0.0827833,95631.0,95621.0,0.052266]
[1733241523107,0.15616147,95630.0,95621.0,0.3608]
[1733241523303,0.26814361,95631.0,95621.0,0.3608]
[1733241523304,0.0305223,95631.0,95621.0,0.36084001]
[1733241523508,0.18536031,95636.0,95630.0,0.052261]
[1733241523711,0.00011587,95635.0,95630.0,0.05230101]
[1733241523913,0.15679283,95631.0,95622.0,0.052265]
[1733241524103,0.15679283,95631.0,95621.0,0.3608]
[1733241524104,0.05226,95631.0,95626.0,0.052263]
[1733241524420,0.1569087,95635.0,95621.0,0.3618]
[1733241524421,4e-05,95623.0,95621.0,0.3618]
[1733241524815,4e-05,95622.0,95621.0,0.414066]
[1733241525520,4e-05,95622.0,95621.0,0.415066]
[1733241525913,4e-05,95622.0,95621.0,0.414066]
[1733241526918,4e-05,95622.0,95621.0,0.415066]
[1733241528219,0.00011587,95635.0,95634.0,0.052259]
[1733241528417,0.00011587,95635.0,95634.0,0.634859]
[1733241528714,0.15460063,95658.0,95656.0,0.052247]
[1733241528917,0.15460063,95660.0,95655.0,0.3608]
[1733241529118,0.20684363,95663.0,95657.0,8.001e-05]
[1733241529324,0.15635295,95659.0,95657.0,8.001e-05]
[1733241529543,0.15635295,95659.0,95658.0,0.052246]
[1733241529817,0.00010386,95659.0,95658.0,0.052246]
[1733241530419,0.00010386,95659.0,95658.0,0.267246]
[1733241530613,0.052246,95658.0,95657.0,0.001]
[1733241530819,0.15699518,95659.0,95658.0,0.052246]
[1733241531010,0.00010386,95659.0,95658.0,0.05236615]
[1733241531216,0.3608,95683.0,95682.0,0.052232]
[1733241531415,0.3608,95691.0,95682.0,0.215]
[1733241531416,0.00136,95691.0,95682.0,0.215]
[1733241531611,0.052223,95699.0,95691.0,0.052227]
[1733241531913,0.052227,95692.0,95690.0,0.3608]
[1733241532115,0.20824814,95698.0,95690.0,0.3608]
[1733241532422,0.15606414,95691.0,95690.0,0.413028]
[1733241532722,4e-05,95691.0,95690.0,0.413028]
[1733241532920,0.15652206,95691.0,95690.0,0.627988]
[1733241533119,4e-05,95691.0,95690.0,0.627988]
[1733241533620,0.05700332,95700.0,95691.0,0.052227]
[1733241533917,0.05700332,95700.0,95690.0,0.3608]
[1733241533918,0.05700332,95700.0,95699.0,0.3608]
[1733241534122,0.05700332,95700.0,95699.0,0.36092001]
[1733241534320,0.21454447,95700.0,95699.0,0.36092001]
[1733241534517,0.21463793,95700.0,95699.0,0.36092001]
[1733241534717,0.36208,95723.0,95699.0,0.36092001]
[1733241534919,0.36208,95723.0,95713.0,0.052215]
[1733241534920,0.05221,95723.0,95713.0,0.052215]
[1733241535115,0.15754115,95722.0,95710.0,0.18919111]
[1733241535311,0.15754115,95722.0,95721.0,0.413011]
[1733241535517,0.02997744,95723.0,95721.0,0.413011]
[1733241535717,0.052207,95729.0,95721.0,0.052211]
[1733241535919,7.84e-05,95724.0,95723.0,0.3608]
[1733241536315,7.84e-05,95724.0,95723.0,0.41309982]
[1733241537124,0.0010784,95724.0,95723.0,0.41409982]
[1733241537530,0.0010784,95724.0,95723.0,0.36188982]
[1733241538724,0.0010784,95724.0,95723.0,0.36288982]
[1733241538725,0.0020784,95724.0,95723.0,0.36288982]
[1733241542132,0.0020784,95724.0,95723.0,0.57772982]
[1733241542822,0.0020784,95724.0,95723.0,0.66182982]
[1733241543225,0.1681,95767.0,95754.0,0.052193]
[1733241543533,0.1681,95767.0,95731.0,0.052206]
[1733241543534,0.11649933,95767.0,95766.0,0.00012001]
[1733241543726,0.11649933,95767.0,95766.0,2.722e-05]
[1733241543920,0.27356449,95767.0,95766.0,2.722e-05]
[1733241544126,0.57364945,95767.0,95766.0,2.722e-05]
[1733241544325,0.67807009,95767.0,95766.0,2.722e-05]
[1733241544933,0.37807009,95767.0,95766.0,2.722e-05]
[1733241545120,0.67807009,95767.0,95766.0,2.722e-05]
[1733241545943,1.03887009,95767.0,95766.0,2.722e-05]
[1733241546636,1.03887009,95767.0,95766.0,0.00102722]
[1733241547437,1.03887009,95767.0,95740.0,0.3608]
[1733241547624,0.3608,95749.0,95740.0,0.3608]
[1733241547833,0.0893,95748.0,95740.0,0.3608]
[1733241548132,0.24539499,95748.0,95729.0,0.3608]
[1733241548437,4e-05,95730.0,95729.0,0.3608]
[1733241548834,0.15696533,95730.0,95729.0,0.3608]
[1733241549539,0.15696533,95730.0,95724.0,0.20812]
[1733241549736,0.1871925,95730.0,95729.0,0.052207]
[1733241550038,0.0893,95748.0,95727.0,0.3608]
[1733241550239,0.3608,95744.0,95740.0,0.001]
[1733241550733,0.15685375,95743.0,95732.0,0.260325]
[1733241551127,0.15685375,95743.0,95727.0,0.3608]
[1733241551128,4e-05,95733.0,95727.0,0.3608]
[1733241551530,0.15685375,95743.0,95730.0,0.052206]
[1733241551531,0.15661342,95732.0,95730.0,0.052206]
[1733241551945,0.15661342,95742.0,95730.0,0.052206]
[1733241552235,0.3618,95743.0,95732.0,0.001]
[1733241552633,0.3618,95743.0,95742.0,4e-05]
[1733241553031,0.5184712,95743.0,95742.0,4e-05]
[1733241553436,0.1576712,95743.0,95742.0,4e-05]
[1733241553638,0.1566712,95743.0,95742.0,4e-05]
[1733241554038,0.15766085,95744.0,95742.0,4e-05]
[1733241554340,0.3608,95745.0,95743.0,4e-05]
[1733241554540,0.12008453,95748.0,95743.0,4e-05]
[1733241554541,0.15664315,95744.0,95743.0,4e-05]
[1733241554741,0.15664315,95744.0,95742.0,0.001]
[1733241554935,0.15664315,95747.0,95735.0,0.052203]
[1733241555137,0.12008453,95748.0,95742.0,0.001]
[1733241555640,0.12008453,95748.0,95747.0,4e-05]
[1733241555830,0.12008453,95748.0,95742.0,0.001]
[1733241555831,0.48088453,95748.0,95742.0,0.00021756]
[1733241556035,0.26082849,95747.0,95742.0,0.00021756]
[1733241556244,4.001e-05,95743.0,95742.0,0.00021756]
[1733241556544,0.15717579,95743.0,95742.0,0.00021756]
[1733241556844,0.15717579,95743.0,95723.0,0.05229982]
[1733241556845,0.15717579,95743.0,95723.0,8.982e-05]
[1733241557032,0.3608,95724.0,95723.0,8.982e-05]
[1733241557234,0.12353742,95724.0,95723.0,8.982e-05]
[1733241557434,0.15711993,95724.0,95723.0,8.982e-05]
[1733241557640,0.28073037,95724.0,95723.0,8.982e-05]
[1733241557835,0.15711993,95724.0,95723.0,8.982e-05]
[1733241558036,0.15811993,95724.0,95723.0,0.00108982]
[1733241558246,0.31272056,95724.0,95723.0,0.00108982]
[1733241558538,0.15811993,95724.0,95723.0,0.00108982]
[1733241559147,0.20890887,95724.0,95723.0,0.00108982]
[1733241559747,0.20790887,95724.0,95723.0,8.982e-05]
[1733241559956,0.20990887,95724.0,95723.0,0.00108982]
[1733241560443,0.20990887,95724.0,95723.0,0.05329982]
[1733241560644,0.20990887,95724.0,95723.0,0.00108982]
[1733241560837,0.39592623,95724.0,95723.0,0.00108982]
[1733241561039,0.20990887,95724.0,95723.0,0.00108982]
[1733241561241,0.36631571,95724.0,95723.0,0.00108982]
[1733241561438,0.36431571,95724.0,95723.0,8.982e-05]
[1733241561644,0.36531571,95724.0,95723.0,0.00108982]
[1733241562039,0.36431571,95724.0,95723.0,8.982e-05]
[1733241562242,0.36431571,95724.0,95723.0,0.00108982]
[1733241562243,0.36531571,95724.0,95723.0,0.00108982]
[1733241564646,0.36531571,95724.0,95723.0,8.982e-05]
[1733241564647,0.36431571,95724.0,95723.0,8.982e-05]
[1733241564841,0.36431571,95724.0,95723.0,0.00108982]
[1733241564842,0.36531571,95724.0,95723.0,0.00108982]
[1733241566553,0.36531571,95724.0,95723.0,0.05329982]
[1733241566848,0.03146749,95724.0,95723.0,0.05329982]
[1733241567049,0.08225049,95724.0,95723.0,0.05329982]
[1733241567644,0.03146749,95724.0,95723.0,0.41409982]
[1733241567841,0.03146749,95724.0,95723.0,0.41309982]
[1733241567842,0.03046749,95724.0,95723.0,0.41309982]
[1733241568047,0.03146749,95724.0,95723.0,0.41409982]
[1733241570049,0.15565427,95725.0,95723.0,0.41409982]
[1733241570250,0.18671435,95733.0,95723.0,0.41409982]
[1733241570251,0.18671435,95733.0,95727.0,0.052208]
[1733241570458,0.2471289,95749.0,95727.0,0.052208]
[1733241570459,0.15562248,95731.0,95728.0,0.19484]
[1733241570653,0.15562248,95731.0,95730.0,0.413006]
[1733241570857,0.15563553,95731.0,95730.0,0.3608]
[1733241571163,0.15563553,95731.0,95730.0,0.413006]
[1733241571354,0.05077534,95731.0,95730.0,0.413006]
[1733241571858,0.17939258,95731.0,95730.0,0.413006]
[1733241572163,0.20788379,95731.0,95728.0,0.001]
[1733241572358,0.05077534,95730.0,95727.0,0.19484]
[1733241572554,4e-05,95729.0,95727.0,0.19484]
[1733241572861,0.15687591,95729.0,95727.0,0.19484]
[1733241573060,0.05077534,95728.0,95725.0,0.052209]
[1733241573367,4e-05,95726.0,95725.0,0.052209]
[1733241573560,0.05081534,95726.0,95725.0,0.052209]
[1733241574267,0.2833741,95726.0,95724.0,4e-05]
[1733241574452,0.17831248,95725.0,95724.0,4e-05]
[1733241574765,0.15572499,95725.0,95724.0,4e-05]
[1733241574965,0.33403747,95725.0,95724.0,4e-05]
[1733241575859,0.33403747,95725.0,95724.0,0.00104]
[1733241576878,0.37196278,95725.0,95724.0,0.00104]
[1733241577176,0.55027526,95725.0,95724.0,0.00104]
[1733241577378,0.33403747,95725.0,95724.0,0.00104]
[1733241577569,0.33703747,95725.0,95724.0,0.00104]
[1733241577771,0.48689481,95725.0,95724.0,0.00104]
[1733241577969,0.15572499,95725.0,95724.0,0.00104]
[1733241578175,0.15872499,95725.0,95724.0,0.00104]
[1733241578578,0.434663,95725.0,95724.0,4e-05]
[1733241578773,0.48844871,95725.0,95724.0,0.00104]
[1733241578976,0.55642034,95725.0,95724.0,0.05325]
[1733241579276,0.33858611,95725.0,95724.0,0.05325]
[1733241579683,0.18290112,95725.0,95724.0,0.05325]
[1733241580375,0.05382571,95725.0,95724.0,0.05325]
[1733241581178,0.00304,95725.0,95724.0,0.05325]
[1733241581377,0.18438182,95725.0,95724.0,0.13495]
[1733241581682,0.05382571,95725.0,95724.0,0.13495]
[1733241582276,0.05382571,95725.0,95724.0,0.13395]
[1733241583070,0.18432609,95725.0,95724.0,0.13395]
[1733241583880,0.05382571,95725.0,95724.0,0.49475]
[1733241584173,4e-05,95729.0,95724.0,0.49475]
[1733241584374,4e-05,95729.0,95728.0,0.052208]
[1733241584580,4e-05,95729.0,95728.0,0.24048801]
[1733241586687,0.1175864,95757.0,95756.0,8.001e-05]
[1733241586875,0.1175864,95757.0,95756.0,0.05227201]
[1733241587077,0.21792393,95762.0,95760.0,0.05219]
[1733241587384,0.2737521,95761.0,95760.0,0.05219]
[1733241587776,0.1175862,95761.0,95760.0,0.05219]
[1733241588180,0.27405678,95761.0,95760.0,0.05219]
[1733241588882,0.27397419,95761.0,95760.0,0.001]
[1733241589080,0.27397419,95761.0,95750.0,0.3608]
[1733241589284,0.15647058,95761.0,95750.0,0.3608]
[1733241589483,4e-05,95751.0,95750.0,0.3608]
[1733241589877,0.157169,95751.0,95750.0,0.3608]
[1733241590081,0.27482412,95751.0,95750.0,0.3608]
[1733241590788,0.1471497,95751.0,95750.0,0.3608]
[1733241590973,0.1481497,95751.0,95750.0,0.3618]
[1733241591180,0.1491497,95751.0,95750.0,0.3618]
[1733241591380,0.03149458,95751.0,95750.0,0.3618]
[1733241593886,0.03049458,95751.0,95750.0,0.3618]
[1733241594184,0.03049458,95751.0,95750.0,0.3608]
[1733241594776,0.03049458,95751.0,95750.0,0.412996]
[1733241595585,0.03049458,95751.0,95750.0,0.594996]
[1733241596790,0.03049458,95751.0,95750.0,0.595996]
[1733241597093,0.03049458,95751.0,95750.0,0.413996]
[1733241597283,0.1863059,95751.0,95735.0,0.3608]
[1733241597483,0.20230075,95750.0,95736.0,0.182]
[1733241597785,0.1177999,95749.0,95748.0,0.052202]
[1733241598201,0.1177999,95749.0,95735.0,0.3608]
[1733241598385,0.03045458,95751.0,95745.0,0.052203]
[1733241598386,0.1177999,95748.0,95745.0,0.052203]
[1733241598688,0.03045458,95751.0,95738.0,0.182]
[1733241598689,0.1177999,95747.0,95746.0,0.052203]
[1733241599191,0.05077203,95747.0,95739.0,0.052207]
[1733241599490,0.02945458,95751.0,95739.0,0.052207]
[1733241599491,4e-05,95740.0,95739.0,0.052207]
[1733241601290,0.00204,95740.0,95739.0,0.052207]
[1733241601590,0.00204,95740.0,95739.0,0.234207]
[1733241602886,0.00204,95740.0,95724.0,4e-05]
[1733241603095,0.00104,95740.0,95724.0,4e-05]
[1733241603386,4e-05,95725.0,95724.0,4e-05]
[1733241604086,4e-05,95725.0,95724.0,0.234255]
[1733241604788,4e-05,95725.0,95724.0,0.053255]
[1733241604988,0.00104,95725.0,95724.0,0.235255]
[1733241606088,0.00247712,95725.0,95724.0,0.053255]
[1733241606590,0.0532604,95725.0,95724.0,0.053255]
[1733241606990,0.08281859,95725.0,95724.0,0.053255]
[1733241607681,0.03203531,95725.0,95724.0,0.053255]
[1733241608782,0.00247712,95725.0,95724.0,0.053255]
[1733241609292,0.00247712,95725.0,95724.0,0.414055]
[1733241609594,0.00247712,95725.0,95724.0,0.42711435]
[1733241609787,0.00147712,95725.0,95724.0,0.42711435]
[1733241609986,0.00347712,95725.0,95724.0,0.42611435]
[1733241610290,0.00347712,95725.0,95724.0,0.09510433]
[1733241610495,0.00347712,95725.0,95724.0,0.04288933]
[1733241610685,0.00347712,95725.0,95724.0,0.02982998]
[1733241610987,0.16098589,95725.0,95724.0,4e-05]
[1733241611188,0.16098589,95725.0,95715.0,0.15714324]
[1733241611392,0.3608,95716.0,95715.0,0.18702965]
[1733241611593,0.16098589,95725.0,95715.0,0.02988641]
[1733241611594,0.12419092,95722.0,95715.0,0.02988641]
[1733241611889,0.00143712,95725.0,95715.0,0.02988641]
[1733241611890,0.00443712,95725.0,95721.0,0.052216]
[1733241612093,0.12418098,95734.0,95724.0,0.05077788]
[1733241612391,0.0522,95741.0,95740.0,0.052206]
[1733241612596,8.496e-05,95767.0,95740.0,0.052206]
[1733241612597,0.0522,95749.0,95748.0,0.052202]
[1733241612794,0.0522,95749.0,95744.0,0.052204]
[1733241612984,0.0522,95749.0,95740.0,0.36088]
[1733241612985,0.0522,95749.0,95748.0,8e-05]
[1733241613688,0.0815,95766.0,95748.0,8e-05]
[1733241613689,0.0522,95765.0,95748.0,8e-05]
[1733241613992,0.0542,95749.0,95745.0,0.18204]
[1733241614295,0.0562,95749.0,95745.0,0.234243]
[1733241614594,0.0562,95749.0,95748.0,0.001]
[1733241614982,0.417,95749.0,95748.0,0.001]
[1733241615886,0.3628,95749.0,95748.0,0.053202]
[1733241616200,0.0542,95749.0,95745.0,0.18304]
[1733241616595,4e-05,95746.0,95745.0,0.001]
[1733241616798,4e-05,95746.0,95745.0,0.053203]
[1733241617394,4e-05,95746.0,95745.0,0.052203]
[1733241618186,4e-05,95746.0,95745.0,0.053203]
[1733241618597,4e-05,95746.0,95745.0,0.001]
[1733241618895,0.00204,95746.0,95745.0,0.001]